Workbook

Sheet Welcome
B1: WELCOME
B3: Amazon Inventory and Investment Analysis System

Sheet Hidden (hidden)
A1: UserName | B1: Password | C1: Name | D1: Role | G1: Department | H1: Products
A2: milena1 | B2: 111 | C2: Milena | D2: Product | G2: Electronics | H2: TVs
A3: alaiya2 | B3: 222 | C3: Alaiya | D3: Product | G3: Clothing | H3: Laptops
A4: vasil3 | B4: 333 | C4: Vasil | D4: Product | G4: Medical | H4: Tablets
A5: todd4 | B5: 444 | C5: Todd | D5: Product | G5: Furniture | H5: Shirts
A6: sabriyya5 | B6: 555 | C6: Sabriyya | D6: Supply | G6: Movies/shows | H6: Pants
A7: brothwood6 | B7: 666 | C7: Brothwood | D7: Supply | H7: Socks
A8: mack7 | B8: 777 | C8: Mack | D8: Supply | H8: Mucinex
H9: Eye Drops
H10: Ibuprofen
H11: Couchs
H12: Tables
H13: Chairs
H14: Movies
H15: Shows
H16: Sports
C24: Row Labels | D24: Sum of Investment
C25: Clothing | D25: 15000
C26: Electronics | D26: 0
C27: Furniture | D27: 0
C28: Medical | D28: 15000
C29: Media2 | D29: 0
C30: Grand Total | D30: 30000

Sheet Investment (hidden)
A1: DEPARTMENT INVESTMENT AND ALLOCATION MODEL
A2: Finds the best allocation of what each department needs and where to max return and min loss
A5: Options | B5: Selected | C5: Allocation | D5: Investment | E5: Return Rate | F5: Risk Rate
A6: Electronics | B6: 0 | C6: 5000 | D6: =Selected*Allocation -> 0 | E6: 0.763361349 | F6: 0.5734737392 | I6: User Inputs:
A7: Clothing | B7: 1 | C7: 15000 | D7: =Selected*Allocation -> 15000 | E7: 0.8046735981 | F7: 0.3269144212 | I7: Min to Select
A8: Medical | B8: 1 | C8: 15000 | D8: =Selected*Allocation -> 15000 | E8: 0.3424919701 | F8: 0.1208490908 | I8: Min Allocation
A9: Furniture | B9: 0 | C9: 5000 | D9: =Selected*Allocation -> 0 | E9: 0.3853864346 | F9: 0.3529662341 | I9: Max Allocation
A10: Media | B10: 0 | C10: 5000 | D10: =Selected*Allocation -> 0 | E10: 0.5446769559 | F10: 0.3961787305 | I10: Available Funds
I11: Return Rates &
B12: Total Selected | C12: Min Allocation | D12: Total Invested | F12: Expected Returns | I12: Risk Rates
B13: =SUM(Selected) -> 2 | C13: 5000 | D13: =SUM(Investment) -> 30000 | F13: =SUMPRODUCT(Return_Rate,Investment) -> 17207.48352
B14: Min to Select | C14: Max Allocation | D14: Available Funds | F14: Expected Risk
B15: 1 | C15: 15000 | D15: 30000 | F15: =SUMPRODUCT(Risk_Rate,Investment) -> 6716.452681
F16: Expected Profit
F17: =Expected_Returns-Expected_Risk -> 10491.03084
B19: Objective | C19: Max Exp Returns | D19: Min Exp Risk
B20: Expected Profit | C20: 6469.52 | D20: 4401.6

Sheet Inventory (hidden)
A1: Summary Department Inventory - Ordering Model
A2: Uses input from based off of the current inventory model helps us know where is best to invest money. We can use that knowledge to minimize loss or maximize profit
A3: Electronics | D3: Clothing | G3: Medical | J3: Furniture | M3: Media | P3: Total Costs | Q3: Available Funds | R3: Total Profit
A4: Total Profit | B4: =Electronics!J10-Electronics!H13 -> 205.3816224 | D4: Total Profit | E4: =Clothing!J10-Clothing!H13 -> 110.3516224 | G4: Total Profit | H4: =Medical!J10-Medical!H13 -> 110.3516224 | J4: Total Profit | K4: =Furniture!J10-Furniture!H13 -> 110.3516224 | M4: Total Profit | N4: =Media!J10-Media!H13 -> 110.3516224 | P4: =SUM(B5,E5,H5,K5,N5) -> 2378.42 | Q4: =AvailFund -> 30000 | R4: =SUM(B4,E4,H4,K4,N4) -> 646.7881122
A5: Total Costs | B5: =Electronics!H13 -> 399.66 | D5: Total Costs | E5: =Clothing!H13 -> 494.69 | G5: Total Costs | H5: =Medical!H13 -> 494.69 | J5: Total Costs | K5: =Furniture!H13 -> 494.69 | M5: Total Costs | N5: =Media!H13 -> 494.69
A6: Available Funds | B6: =Electronics!I13 -> 500 | D6: Available Funds | E6: 500 | G6: Available Funds | H6: =Medical!I13 -> 500 | J6: Available Funds | K6: =Furniture!I13 -> 500 | M6: Available Funds | N6: =Media!I13 -> 500
A8: Total Order Quantity | D8: Total Order Quantity | G8: Total Order Quantity | J8: Total Order Quantity | M8: Total Order Quantity
A9: Min | B9: =Electronics!I17 -> 70 | D9: Min | E9: =Clothing!I17 -> 71 | G9: Min | H9: =Medical!I17 -> 71 | J9: Min | K9: =Furniture!I17 -> 71 | M9: Min | N9: =Media!I17 -> 71
A10: Max | B10: =Electronics!J17 -> 29 | D10: Max | E10: =Clothing!J17 -> 29 | G10: Max | H10: =Medical!J17 -> 29 | J10: Max | K10: =Furniture!J17 -> 29 | M10: Max | N10: =Media!J17 -> 29

Sheet Electronics (hidden)
A1: Electronics Ordering Model
A2: Product | B2: Current Inventory | C2: Expected Demand | D2: Order Quantity | E2: Updated Inventory | F2: Actual Sales | G2: Lost Sales | H2: Order Cost | I2: Lost Sales Cost | J2: Sales Price
A3: Television | B3: 5 | C3: 22 | D3: 20 | E3: =Current_Inventory+Order_Quantity -> 25 | F3: =MIN(_xlfn.SINGLE(Expected_Demand),_xlfn.SINGLE(Updated_Inventory)) -> 22 | G3: =Expected_Demand-Actual_Sales -> 0 | H3: 7.31 | I3: 2.923321205 | J3: 13.1352795
A4: Laptops | B4: 9 | C4: 17 | D4: 38 | E4: =Current_Inventory+Order_Quantity -> 47 | F4: =MIN(_xlfn.SINGLE(Expected_Demand),_xlfn.SINGLE(Updated_Inventory)) -> 17 | G4: =Expected_Demand-Actual_Sales -> 0 | H4: 6.67 | I4: 3.36335334 | J4: 12.76570864
A5: Tablets | B5: 13 | C5: 10 | D5: 0 | E5: =Current_Inventory+Order_Quantity -> 13 | F5: =MIN(_xlfn.SINGLE(Expected_Demand),_xlfn.SINGLE(Updated_Inventory)) -> 10 | G5: =Expected_Demand-Actual_Sales -> 0 | H5: 5.84 | I5: 2.526915782 | J5: 9.904842649
B9: User Input: | H9: Total Order | I9: Total Lost Sales | J9: Total Revenue
B10: Current Inventory | H10: =SUMPRODUCT(H3:H5,D3:D5) -> 399.66 | I10: =SUMPRODUCT(I3:I5,G3:G5) -> 0 | J10: =SUMPRODUCT(J3:J5,F3:F5) -> 605.0416224
B11: Expected Demand
B12: Lost Sales Cost | H12: Total Costs | I12: Available Funds | J12: Total Profit
B13: Order Cost | H13: =SUM(H10:I10) -> 399.66 | I13: 500 | J13: =Total_Revenue-Total_Costs -> 205.3816224
B14: Sales Price
H16: Objective | I16: Min Total Lost Sales Cost | J16: Max Profit
H17: Total Order Quantity | I17: 70 | J17: 29

Sheet Clothing (hidden)
A1: Clothing Ordering Model
A2: Product | B2: Current Inventory | C2: Expected Demand | D2: Order Quantity | E2: Updated Inventory | F2: Actual Sales | G2: Lost Sales | H2: Order Cost | I2: Lost Sales Cost | J2: Sales Price
A3: Shirts | B3: 5 | C3: 22 | D3: 33 | E3: =Current_Inventory+Order_Quantity -> 38 | F3: =MIN(_xlfn.SINGLE(Expected_Demand),_xlfn.SINGLE(Updated_Inventory)) -> 22 | G3: =Expected_Demand-Actual_Sales -> 0 | H3: 7.31 | I3: 2.923321205 | J3: 13.1352795
A4: Pants | B4: 9 | C4: 17 | D4: 38 | E4: =Current_Inventory+Order_Quantity -> 47 | F4: =MIN(_xlfn.SINGLE(Expected_Demand),_xlfn.SINGLE(Updated_Inventory)) -> 17 | G4: =Expected_Demand-Actual_Sales -> 0 | H4: 6.67 | I4: 3.36335334 | J4: 12.76570864
A5: Socks | B5: 13 | C5: 10 | D5: 0 | E5: =Current_Inventory+Order_Quantity -> 13 | F5: =MIN(_xlfn.SINGLE(Expected_Demand),_xlfn.SINGLE(Updated_Inventory)) -> 10 | G5: =Expected_Demand-Actual_Sales -> 0 | H5: 5.84 | I5: 2.526915782 | J5: 9.904842649
H9: Total Order | I9: Total Lost Sales | J9: Total Revenue
H10: =SUMPRODUCT(H3:H5,D3:D5) -> 494.69 | I10: =SUMPRODUCT(I3:I5,G3:G5) -> 0 | J10: =SUMPRODUCT(J3:J5,F3:F5) -> 605.0416224
H12: Total Costs | I12: Available Funds | J12: Total Profit
H13: =SUM(H10:I10) -> 494.69 | I13: 500 | J13: =Total_Revenue-Total_Costs -> 110.3516224
H16: Objective | I16: Min Total Lost Sales Cost | J16: Max Profit
H17: Total Order Quantity | I17: 71 | J17: 29

Sheet Medical (hidden)
A1: Medical Ordering Model
A2: Product | B2: Current Inventory | C2: Expected Demand | D2: Order Quantity | E2: Updated Inventory | F2: Actual Sales | G2: Lost Sales | H2: Order Cost | I2: Lost Sales Cost | J2: Sales Price
A3: Mucinex | B3: 5 | C3: 22 | D3: 33 | E3: =Current_Inventory+Order_Quantity -> 38 | F3: =MIN(_xlfn.SINGLE(Expected_Demand),_xlfn.SINGLE(Updated_Inventory)) -> 22 | G3: =Expected_Demand-Actual_Sales -> 0 | H3: 7.31 | I3: 2.923321205 | J3: 13.1352795
A4: Eye Drops | B4: 9 | C4: 17 | D4: 38 | E4: =Current_Inventory+Order_Quantity -> 47 | F4: =MIN(_xlfn.SINGLE(Expected_Demand),_xlfn.SINGLE(Updated_Inventory)) -> 17 | G4: =Expected_Demand-Actual_Sales -> 0 | H4: 6.67 | I4: 3.36335334 | J4: 12.76570864
A5: Ibuprofen | B5: 13 | C5: 10 | D5: 0 | E5: =Current_Inventory+Order_Quantity -> 13 | F5: =MIN(_xlfn.SINGLE(Expected_Demand),_xlfn.SINGLE(Updated_Inventory)) -> 10 | G5: =Expected_Demand-Actual_Sales -> 0 | H5: 5.84 | I5: 2.526915782 | J5: 9.904842649
H9: Total Order | I9: Total Lost Sales | J9: Total Revenue
H10: =SUMPRODUCT(H3:H5,D3:D5) -> 494.69 | I10: =SUMPRODUCT(I3:I5,G3:G5) -> 0 | J10: =SUMPRODUCT(J3:J5,F3:F5) -> 605.0416224
H12: Total Costs | I12: Available Funds | J12: Total Profit
H13: =SUM(H10:I10) -> 494.69 | I13: 500 | J13: =Total_Revenue-Total_Costs -> 110.3516224
H16: Objective | I16: Min Total Lost Sales Cost | J16: Max Profit
H17: Total Order Quantity | I17: 71 | J17: 29

Sheet Furniture (hidden)
A1: Furniture Ordering Model
A2: Product | B2: Current Inventory | C2: Expected Demand | D2: Order Quantity | E2: Updated Inventory | F2: Actual Sales | G2: Lost Sales | H2: Order Cost | I2: Lost Sales Cost | J2: Sales Price
A3: Couches | B3: 5 | C3: 22 | D3: 33 | E3: =Current_Inventory+Order_Quantity -> 38 | F3: =MIN(_xlfn.SINGLE(Expected_Demand),_xlfn.SINGLE(Updated_Inventory)) -> 22 | G3: =Expected_Demand-Actual_Sales -> 0 | H3: 7.31 | I3: 2.923321205 | J3: 13.1352795
A4: Tables | B4: 9 | C4: 17 | D4: 38 | E4: =Current_Inventory+Order_Quantity -> 47 | F4: =MIN(_xlfn.SINGLE(Expected_Demand),_xlfn.SINGLE(Updated_Inventory)) -> 17 | G4: =Expected_Demand-Actual_Sales -> 0 | H4: 6.67 | I4: 3.36335334 | J4: 12.76570864
A5: Chairs | B5: 13 | C5: 10 | D5: 0 | E5: =Current_Inventory+Order_Quantity -> 13 | F5: =MIN(_xlfn.SINGLE(Expected_Demand),_xlfn.SINGLE(Updated_Inventory)) -> 10 | G5: =Expected_Demand-Actual_Sales -> 0 | H5: 5.84 | I5: 2.526915782 | J5: 9.904842649
H9: Total Order | I9: Total Lost Sales | J9: Total Revenue
H10: =SUMPRODUCT(H3:H5,D3:D5) -> 494.69 | I10: =SUMPRODUCT(I3:I5,G3:G5) -> 0 | J10: =SUMPRODUCT(J3:J5,F3:F5) -> 605.0416224
H12: Total Costs | I12: Available Funds | J12: Total Profit
H13: =SUM(H10:I10) -> 494.69 | I13: 500 | J13: =Total_Revenue-Total_Costs -> 110.3516224
H16: Objective | I16: Min Total Lost Sales Cost | J16: Max Profit
H17: Total Order Quantity | I17: 71 | J17: 29

Sheet Media (hidden)
A1: Media Ordering Model
A2: Product | B2: Current Inventory | C2: Expected Demand | D2: Order Quantity | E2: Updated Inventory | F2: Actual Sales | G2: Lost Sales | H2: Order Cost | I2: Lost Sales Cost | J2: Sales Price
A3: Movies | B3: 5 | C3: 22 | D3: 33 | E3: =Current_Inventory+Order_Quantity -> 38 | F3: =MIN(_xlfn.SINGLE(Expected_Demand),_xlfn.SINGLE(Updated_Inventory)) -> 22 | G3: =Expected_Demand-Actual_Sales -> 0 | H3: 7.31 | I3: 2.923321205 | J3: 13.1352795
A4: Shows | B4: 9 | C4: 17 | D4: 38 | E4: =Current_Inventory+Order_Quantity -> 47 | F4: =MIN(_xlfn.SINGLE(Expected_Demand),_xlfn.SINGLE(Updated_Inventory)) -> 17 | G4: =Expected_Demand-Actual_Sales -> 0 | H4: 6.67 | I4: 3.36335334 | J4: 12.76570864
A5: Sports | B5: 13 | C5: 10 | D5: 0 | E5: =Current_Inventory+Order_Quantity -> 13 | F5: =MIN(_xlfn.SINGLE(Expected_Demand),_xlfn.SINGLE(Updated_Inventory)) -> 10 | G5: =Expected_Demand-Actual_Sales -> 0 | H5: 5.84 | I5: 2.526915782 | J5: 9.904842649
H9: Total Order | I9: Total Lost Sales | J9: Total Revenue
H10: =SUMPRODUCT(H3:H5,D3:D5) -> 494.69 | I10: =SUMPRODUCT(I3:I5,G3:G5) -> 0 | J10: =SUMPRODUCT(J3:J5,F3:F5) -> 605.0416224
H12: Total Costs | I12: Available Funds | J12: Total Profit
H13: =SUM(H10:I10) -> 494.69 | I13: 500 | J13: =Total_Revenue-Total_Costs -> 110.3516224
H16: Objective | I16: Min Total Lost Sales Cost | J16: Max Profit
H17: Total Order Quantity | I17: 71 | J17: 29
